bitfinex-derivatives/quotes_ETHF0:USTF0_20241020
["timestamp","ask_amount","ask_price","bid_price","bid_amount"]
[1729455116227,4.01986082,2705.0,2704.9,3.97092089]
[1729455116844,4.38960082,2705.0,2704.9,3.97092089]
[1729455117446,4.01986082,2705.0,2704.9,3.97092089]
[1729455117636,0.75753,2705.1,2704.9,4.45629228]
[1729455117637,3.18468429,2705.1,2704.9,4.45629228]
[1729455117842,3.18468429,2705.1,2705.0,0.11562538]
[1729455118140,2.69875772,2705.1,2705.0,0.57811096]
[1729455120043,2.69875772,2705.1,2704.9,4.17234468]
[1729455122146,2.32902772,2705.1,2704.9,4.17234468]
[1729455122345,0.36974,2705.0,2704.9,4.17234468]
[1729455122643,0.36974,2705.0,2704.9,5.67877621]
[1729455123245,1.94122772,2705.0,2704.8,0.96454468]
[1729455123446,2.36127594,2704.9,2704.7,0.96454468]
[1729455123646,2.36127594,2704.9,2704.6,4.66363116]
[1729455123647,0.418,2704.8,2704.6,4.17234468]
[1729455123848,2.70349218,2704.7,2704.6,3.2078]
[1729455125445,6.40109218,2704.7,2704.6,3.2078]
[1729455125650,4.45968,2704.7,2704.6,3.2078]
[1729455126247,6.05437645,2704.7,2704.6,3.2078]
[1729455126448,4.45968,2704.7,2704.6,3.2078]
[1729455127449,6.3992622,2704.7,2704.6,3.2078]
[1729455127653,0.36982,2704.4,2704.2,1.33437468]
[1729455127946,1.75203964,2704.3,2704.2,2.08637468]
[1729455128149,2.16013964,2704.3,2704.2,2.66462929]
[1729455128351,0.4081,2704.3,2704.2,2.66462929]
[1729455128652,0.4081,2704.3,2704.2,2.66460115]
[1729455129251,0.96983964,2704.4,2704.3,0.36983]
[1729455129465,0.96983964,2704.4,2704.3,1.77115647]
[1729455130367,0.96983964,2704.5,2704.4,0.36982]
[1729455130675,0.96983964,2704.5,2704.4,3.69326529]
[1729455130875,0.96983964,2704.5,2704.4,3.57762]
[1729455131075,2.23695946,2704.6,2704.4,3.57762]
[1729455131266,0.9693285,2704.5,2704.4,3.57762]
[1729455131868,2.23695946,2704.6,2704.4,7.48358725]
[1729455131869,0.9693285,2704.6,2704.4,7.48358725]
[1729455132071,0.9693285,2704.7,2704.6,0.36979]
[1729455132277,0.9693285,2704.8,2704.7,0.36978]
[1729455134072,0.36978,2704.8,2704.5,1.1218]
[1729455134274,0.96919335,2704.6,2704.5,1.1218]
[1729455134467,0.96919335,2704.6,2704.5,1.69998463]
[1729455134667,0.3927,2704.6,2704.5,1.33018463]
[1729455134975,1.3619,2704.6,2704.5,1.33018463]
[1729455136375,1.3619,2704.6,2704.5,1.1218]
[1729455136680,1.3619,2704.6,2704.5,1.6999766]
[1729455137473,1.3619,2704.6,2704.5,4.9077766]
[1729455137876,1.3619,2704.6,2704.5,4.1557766]
[1729455138071,1.3619,2704.6,2704.5,4.5379766]
[1729455138265,2.63389089,2704.6,2704.5,4.07543532]
[1729455138471,2.26410089,2704.6,2704.5,4.07543532]
[1729455139877,2.26410089,2704.6,2704.5,3.9598]
[1729455139878,2.63389089,2704.6,2704.5,3.9598]
[1729455140374,2.63389089,2704.6,2704.5,3.2078]
[1729455140673,2.63389089,2704.6,2704.2,0.96454468]
[1729455140674,0.36982,2704.4,2704.3,0.752]
[1729455140875,1.82380425,2704.4,2704.3,0.752]
[1729455141180,1.33913734,2704.4,2704.3,0.752]
[1729455141676,0.96931734,2704.5,2704.3,1.33021014]
[1729455141883,0.96931734,2704.5,2704.4,0.36982]
[1729455142184,1.84178425,2704.6,2704.5,0.3698]
[1729455142185,1.35711734,2704.6,2704.5,0.3698]
[1729455142378,1.35711734,2704.6,2704.5,3.5776]
[1729455145074,1.35711734,2704.6,2704.5,0.3698]
[1729455145372,1.35711734,2704.6,2704.5,3.2078]
[1729455145773,1.72690734,2704.6,2704.5,3.2078]
[1729455146575,2.21157425,2704.6,2704.5,3.2078]
[1729455147184,2.21157425,2704.6,2704.3,4.32962]
[1729455147375,0.96928417,2704.5,2704.3,4.32962]
[1729455148374,0.96928417,2704.4,2704.3,4.32962]
[1729455148575,0.96928417,2704.4,2704.3,3.2078]
[1729455148974,1.82379425,2704.5,2704.3,3.2078]
[1729455149176,1.45398425,2704.5,2704.3,3.2078]
[1729455149376,0.96924215,2704.4,2704.3,3.2078]
[1729455149581,1.33906215,2704.4,2704.3,3.2078]
[1729455149885,0.36982,2704.4,2704.3,3.2078]
[1729455150083,0.96923752,2704.4,2704.3,3.2078]
[1729455150286,0.96923935,2704.4,2704.3,3.78603087]
[1729455151275,1.33905935,2704.4,2704.3,3.6703847]
[1729455151474,0.96923935,2704.4,2704.3,3.32344582]
[1729455151675,0.96923935,2704.4,2704.3,3.7860266]
[1729455151882,0.96923935,2704.4,2704.3,4.24860069]
[1729455152888,0.96923935,2704.4,2704.3,4.24860143]
[1729455153090,0.96923935,2704.4,2704.3,1.04080143]
[1729455153791,1.82379425,2704.5,2704.3,0.57821922]
[1729455153994,1.82379425,2704.5,2704.4,0.11564513]
[1729455155182,1.82379425,2704.5,2704.4,0.11564561]
[1729455155696,1.82379425,2704.5,2704.4,0.11564438]
[1729455156387,1.33908221,2704.5,2704.4,0.11564438]
[1729455156893,1.33908221,2704.5,2704.2,5.69258468]
[1729455157079,1.33908221,2704.5,2704.3,0.57823095]
[1729455157284,1.33908221,2704.5,2704.2,5.69258468]
[1729455157588,1.33908221,2704.5,2704.3,0.57822771]
[1729455157891,1.33908221,2704.5,2704.2,5.69258468]
[1729455158090,1.33908221,2704.5,2704.3,0.57822718]
[1729455158291,0.3865,2704.4,2704.2,5.69258468]
[1729455158496,0.3865,2704.4,2704.3,0.57822247]
[1729455159080,0.3865,2704.4,2704.3,0.57822277]
[1729455159282,1.72559221,2704.4,2704.3,0.11564449]
[1729455160389,0.36983,2704.3,2704.2,3.2078]
[1729455160593,1.73427392,2704.3,2704.2,3.78605556]
[1729455162190,1.73427392,2704.3,2704.2,3.32345111]
[1729455162394,1.73427392,2704.3,2704.2,3.78606019]
[1729455163796,1.73427392,2704.3,2704.2,0.57826019]
[1729455164092,1.73427392,2704.3,2704.2,3.78606019]
[1729455164295,1.73427392,2704.3,2704.2,0.57826019]
[1729455164491,1.73427392,2704.3,2704.2,3.78606019]
[1729455165296,1.73427392,2704.3,2704.2,0.57826019]
[1729455165499,1.73427392,2704.3,2704.1,2.08640468]
[1729455165692,0.3825,2704.2,2704.1,2.08640468]
[1729455165893,0.3825,2704.2,2704.1,6.80048903]
[1729455166194,0.3825,2704.2,2704.1,5.83594435]
[1729455166392,0.3825,2704.2,2704.1,6.80009484]
[1729455166799,0.3825,2704.2,2704.1,6.43023484]
[1729455167390,0.3825,2704.2,2704.1,5.46608435]
[1729455167899,0.3825,2704.2,2704.1,2.25828435]
[1729455168101,0.3825,2704.2,2704.1,2.74344337]
[1729455168399,0.3825,2704.2,2704.1,7.40707453]
[1729455169503,1.35194392,2704.2,2704.1,7.40707453]
[1729455170503,1.35194392,2704.2,2704.1,5.2941872]
[1729455170803,1.35194392,2704.2,2704.1,5.40983914]
[1729455170992,1.35194392,2704.2,2704.1,5.87244691]
[1729455171191,1.35194392,2704.2,2704.1,6.91601031]
[1729455171394,1.35194392,2704.2,2704.1,5.87244691]
[1729455171592,1.35194392,2704.2,2704.1,6.91597791]
[1729455172191,1.35194392,2704.2,2704.1,7.03162763]
[1729455172393,1.35194392,2704.2,2704.1,7.77176465]
[1729455173004,1.35194392,2704.2,2704.1,7.77169854]
[1729455173191,1.35194392,2704.2,2704.1,6.80717134]
[1729455173397,1.35194392,2704.2,2704.1,7.77152757]
[1729455173601,1.35194392,2704.2,2704.1,7.9565675]
[1729455174402,1.35194392,2704.2,2704.1,6.49676102]
[1729455174600,1.35194392,2704.2,2704.1,6.4505206]
[1729455174796,1.35194392,2704.2,2704.1,7.95648212]
[1729455174999,1.35194392,2704.2,2704.1,3.70532235]
[1729455175301,1.35194392,2704.2,2704.1,6.91312235]
[1729455175500,1.35194392,2704.2,2704.1,3.70532235]
[1729455175800,1.35194392,2704.2,2704.1,6.91312235]
[1729455177294,1.35194392,2704.2,2704.1,3.70532235]
[1729455177697,1.35194392,2704.2,2704.1,6.91312235]
[1729455178007,1.35194392,2704.2,2704.1,6.91312933]
[1729455178397,0.3825,2704.2,2704.1,8.44788743]
[1729455179203,0.3825,2704.2,2704.1,8.07802743]
[1729455179401,0.75235,2704.2,2704.1,4.93549769]
[1729455179604,0.75235,2704.2,2704.1,3.32345043]
[1729455179605,2.69099567,2704.2,2704.1,3.32345043]
[1729455179803,2.69099567,2704.2,2704.1,3.2078]
[1729455179804,0.75235,2704.2,2704.1,3.2078]
[1729455180004,4.77626585,2704.2,2704.1,3.2078]
[1729455181111,4.77636338,2704.2,2704.1,3.2078]
[1729455181811,0.3699,2703.8,2703.7,0.96440212]
[1729455182113,0.36991,2703.7,2703.5,1.71640212]
[1729455182304,2.15713526,2703.7,2703.5,2.08633212]
[1729455182498,0.96982526,2703.6,2703.5,2.08633212]
[1729455182704,2.15713526,2703.7,2703.5,2.54905417]
[1729455183005,1.78722526,2703.7,2703.5,3.01177465]
[1729455183201,0.96982526,2703.8,2703.6,0.36993]
[1729455183405,1.45473065,2703.9,2703.6,0.36993]
[1729455183406,0.96982526,2703.9,2703.7,1.96363424]
[1729455183706,0.96982526,2704.0,2703.9,0.36989]
[1729455183898,0.96982526,2704.0,2703.7,1.38530212]
[1729455184099,0.96982526,2704.0,2703.9,0.36989]
[1729455185512,1.45473065,2704.0,2703.9,0.36989]
[1729455186811,1.45473065,2704.1,2703.7,1.38530212]
[1729455187014,1.45473065,2704.1,2704.0,0.36987]
[1729455187314,0.96923531,2704.1,2704.0,0.36987]
[1729455187512,1.45473065,2704.2,2704.0,0.46262854]
[1729455187817,1.45473065,2704.2,2704.1,0.36986]
[1729455189412,1.94034249,2704.2,2704.1,0.36986]
[1729455189608,3.12758249,2704.3,2704.1,0.36986]
[1729455189917,3.12758249,2704.3,2704.2,0.36985]
[1729455191204,0.36985,2704.2,2704.1,0.36985]
[1729455191402,2.31019249,2704.2,2704.1,0.36985]
[1729455191607,1.94034249,2704.2,2704.1,0.36985]
[1729455191913,3.12758249,2704.3,2704.2,0.36985]
[1729455192413,6.82518249,2704.3,2704.2,0.36985]
[1729455192813,3.12758249,2704.3,2704.2,0.36985]
[1729455193509,1.18724,2704.3,2704.2,0.36985]
[1729455195606,0.8174,2704.3,2704.2,0.36985]
[1729455195911,5.96894532,2704.3,2704.2,0.36985]
[1729455196306,2.64117532,2704.3,2704.2,0.36985]
[1729455196911,6.33877532,2704.3,2704.2,0.36985]
[1729455197115,2.64117532,2704.3,2704.2,0.36985]
[1729455197516,2.27134532,2704.3,2704.2,0.36985]
[1729455197919,0.8174,2704.3,2704.2,0.36985]
[1729455199818,1.78678899,2704.3,2704.2,0.36985]
[1729455200511,0.8174,2704.3,2704.2,0.36985]
[1729455200817,2.27134532,2704.3,2704.2,0.36985]
[1729455201423,0.8174,2704.3,2704.2,0.36985]
[1729455202114,2.27160934,2704.3,2704.2,0.36985]
[1729455202417,1.18723,2704.3,2704.2,0.36985]
[1729455202822,1.18723,2704.3,2704.1,1.16995]
[1729455203011,1.45430007,2704.2,2704.1,1.16995]
[1729455203216,1.45430007,2704.2,2704.1,1.285606]
[1729455203521,1.45430007,2704.2,2704.1,1.74823012]
[1729455205918,1.45430007,2704.2,2704.1,1.93327698]
[1729455206315,2.27170007,2704.3,2704.1,1.93327698]
[1729455206516,2.27170007,2704.3,2704.2,0.57828012]
[1729455206730,0.8174,2704.3,2704.2,0.57828012]
[1729455206927,2.27187566,2704.3,2704.2,0.57828012]
[1729455207131,1.45447566,2704.3,2704.2,0.94813012]
[1729455208326,1.45447566,2704.3,2704.2,0.57828012]
[1729455208726,0.96964772,2704.3,2704.2,0.57828012]
[1729455209121,0.96964772,2704.3,2704.2,0.94813012]
[1729455210124,0.96964772,2704.4,2704.3,0.36983]
[1729455210325,0.96964772,2704.4,2704.2,0.96440212]
[1729455210522,0.96964772,2704.4,2704.2,1.33424212]
[1729455210723,0.96964772,2704.5,2704.3,1.54263443]
[1729455210925,0.96964772,2704.5,2704.4,0.94805231]
[1729455211821,0.96964772,2704.5,2704.4,0.57823231]
[1729455212433,0.96964772,2704.5,2704.3,0.96440212]
[1729455212619,0.96964772,2704.5,2704.4,0.48546313]
[1729455212826,0.96964772,2704.5,2704.4,0.11564218]
[1729455213030,0.96964772,2704.5,2704.3,1.33422212]
[1729455215028,0.96964772,2704.5,2704.4,0.36982]
[1729455215529,0.96964772,2704.5,2704.4,0.48546127]
[1729455215744,0.96964772,2704.5,2704.4,0.48546101]
[1729455216234,0.96964772,2704.5,2704.4,0.36982]
[1729455216727,0.96964772,2704.5,2704.3,1.33422212]
[1729455217232,0.96964772,2704.5,2704.4,0.11564124]
[1729455217730,0.96964772,2704.5,2704.4,0.57820514]
[1729455219637,2.15833772,2704.6,2704.4,0.57820514]
[1729455219831,2.15833772,2704.6,2704.5,0.11564124]
[1729455220331,2.15833772,2704.6,2704.3,0.36982]
[1729455220532,2.15833772,2704.6,2704.4,0.11564084]
[1729455220728,2.15833772,2704.6,2704.4,0.46256398]
[1729455220929,2.15833772,2704.6,2704.5,0.11564102]
[1729455223238,2.15833772,2704.6,2704.3,0.36982]
[1729455223437,2.15833772,2704.6,2704.4,0.57820662]
[1729455223636,2.15833772,2704.6,2704.5,0.11564146]
[1729455223940,1.18869,2704.6,2704.3,0.36982]
[1729455224145,0.9689536,2704.4,2704.3,0.36982]
[1729455224327,0.9689536,2704.4,2704.3,1.13305357]
[1729455226942,0.9689536,2704.4,2704.3,0.94802725]
[1729455227641,0.9689536,2704.4,2704.3,0.8323858]
[1729455227833,0.9689536,2704.4,2704.3,1.1330545]
[1729455229239,0.9689536,2704.4,2704.3,1.8850545]
[1729455230246,1.4534304,2704.5,2704.3,1.8850545]
[1729455230443,1.4534304,2704.5,2704.4,0.57820755]
[1729455230756,0.96931412,2704.5,2704.4,0.94802755]
[1729455231134,0.96931412,2704.5,2704.4,0.94802714]
[1729455231448,0.96931412,2704.5,2704.4,0.9480267]
[1729455231647,0.96931412,2704.5,2704.4,0.5782067]
[1729455232539,1.33911412,2704.5,2704.4,0.5782067]
[1729455232746,3.2078,2704.5,2704.2,0.752]
[1729455232941,3.2078,2704.5,2704.1,1.33425212]
[1729455232942,0.96949876,2704.3,2704.1,1.33425212]
[1729455233134,0.8027,2704.2,2704.1,0.36985]
[1729455233343,1.1881,2704.2,2704.1,1.54266448]
[1729455233845,2.15759876,2704.2,2704.1,0.57826236]
[1729455234244,2.15759876,2704.2,2704.1,0.94812236]
[1729455234633,2.15759876,2704.2,2704.1,1.91252448]
[1729455234834,2.52744876,2704.2,2704.1,1.54266448]
[1729455235034,2.15759876,2704.2,2704.1,0.57826236]
[1729455235850,2.15759876,2704.2,2704.1,0.94812236]
[1729455236242,1.1881,2704.2,2704.1,1.91252448]
[1729455236650,1.1881,2704.2,2704.1,1.79687201]
[1729455236841,1.1881,2704.2,2704.1,1.91252414]
[1729455237037,0.96949876,2704.3,2704.2,0.36985]
[1729455237352,1.37179876,2704.4,2704.3,0.36983]
[1729455237654,1.37179876,2704.4,2704.3,0.94809202]
[1729455238154,1.37179876,2704.4,2704.3,0.48548213]
[1729455238446,1.37179876,2704.4,2704.3,0.94806096]
[1729455238848,0.4023,2704.4,2704.3,0.94806096]
[1729455239051,1.85654814,2704.4,2704.3,0.94806096]
[1729455240155,1.85654814,2704.4,2704.3,1.34466074]
[1729455240346,1.85654814,2704.4,2704.3,1.52969344]
[1729455240947,1.85654814,2704.4,2704.3,1.22900861]
[1729455241148,1.85654814,2704.4,2704.3,1.06710804]
[1729455241449,1.85654814,2704.4,2704.3,1.52968965]
[1729455242741,1.85654814,2704.4,2704.3,0.76643]
[1729455243145,1.85654814,2704.4,2704.3,1.52969344]
[1729455243347,1.85654814,2704.4,2704.3,1.99227735]
[1729455243953,1.85654814,2704.4,2704.3,1.9922711]
[1729455244252,1.85654814,2704.4,2704.3,1.52968719]
[1729455244448,1.85654814,2704.4,2704.3,1.52968419]
[1729455244648,1.85654814,2704.4,2704.3,1.52968581]
[1729455244847,1.85654814,2704.4,2704.3,2.26981187]
[1729455245151,1.85654814,2704.4,2704.3,1.52968581]
[1729455245349,1.85654814,2704.4,2704.3,2.49351281]
[1729455245547,1.85654814,2704.4,2704.3,1.52968581]
[1729455245852,1.85654814,2704.4,2704.3,2.26980587]
[1729455246447,1.85654814,2704.4,2704.3,3.23363287]
[1729455246448,0.4023,2704.4,2704.3,3.23363287]
[1729455246845,1.37241343,2704.4,2704.3,4.39121869]
[1729455248144,1.37241343,2704.4,2704.3,4.39122202]
[1729455248353,1.37241343,2704.4,2704.3,3.24236331]
[1729455249053,1.37241343,2704.4,2704.3,4.20678722]
[1729455249246,1.37241343,2704.4,2704.3,3.24249696]
[1729455250351,1.37258812,2704.4,2704.3,3.24249696]
[1729455250553,1.37258812,2704.4,2704.3,4.69832812]
[1729455250761,1.372605,2704.4,2704.3,3.24249696]
[1729455250954,0.4023,2704.4,2704.3,3.24249696]
[1729455251257,0.4023,2704.4,2704.3,4.69832812]
[1729455251552,0.4023,2704.4,2704.3,1.92415045]
[1729455251757,0.4023,2704.4,2704.3,4.69833789]
[1729455253050,1.85654814,2704.4,2704.3,4.69833789]
[1729455254057,1.85654814,2704.4,2704.3,3.65626275]
[1729455254257,1.85654814,2704.4,2704.3,4.69856333]
[1729455254857,1.85654814,2704.4,2704.3,4.58291805]
[1729455255054,1.85654814,2704.4,2704.3,4.46727274]
[1729455255253,1.85654814,2704.4,2704.3,4.58291713]
[1729455255757,0.4023,2704.4,2704.3,4.58291713]
[1729455256154,1.37279979,2704.4,2704.3,4.58291713]
[1729455256661,0.97049979,2704.4,2704.3,4.58291713]
[1729455256960,0.97049979,2704.4,2704.3,4.98131713]
[1729455257759,1.82405814,2704.5,2704.3,4.98131713]
[1729455257961,1.82405814,2704.5,2704.4,2.47003922]
[1729455258356,1.82405814,2704.5,2704.4,3.21015501]
[1729455258578,1.82405814,2704.5,2704.4,0.96515749]
[1729455258863,1.82405814,2704.5,2704.4,1.42773808]
[1729455260463,1.82405814,2704.5,2704.4,2.47055758]
[1729455261268,1.82405814,2704.5,2704.4,2.84037988]
[1729455261459,3.60845429,2704.6,2704.4,0.83240059]
[1729455261764,3.60845429,2704.6,2704.5,0.46258059]
[1729455261957,5.20843803,2704.6,2704.5,0.46258059]
[1729455262358,5.20843803,2704.6,2704.5,1.20269265]
[1729455262557,5.20843803,2704.6,2704.5,1.31833845]
[1729455262860,2.78128374,2704.6,2704.5,0.57822639]
[1729455265666,2.78128374,2704.6,2704.5,0.94802639]
[1729455265966,2.78128374,2704.6,2704.5,0.94802996]
[1729455268471,3.12243301,2704.6,2704.5,0.94802996]
[1729455269464,3.12243301,2704.6,2704.5,0.48544455]
[1729455269672,3.12243301,2704.6,2704.5,0.94802278]
[1729455270157,1.1813,2704.6,2704.5,0.94802278]
[1729455270567,1.1813,2704.6,2704.5,0.83237823]
[1729455273065,1.1813,2704.6,2704.5,0.3698]
[1729455273266,1.1813,2704.6,2704.5,0.83237967]
[1729455273669,1.1813,2704.6,2704.5,0.3698]
[1729455276762,2.78409022,2704.6,2704.5,0.3698]
[1729455278366,2.78413553,2704.6,2704.5,0.3698]
[1729455278959,2.41433553,2704.6,2704.5,0.3698]
[1729455279272,4.42240242,2704.6,2704.5,0.3698]
[1729455279464,4.42240242,2704.6,2704.5,0.48543949]
[1729455279766,4.02940242,2704.6,2704.5,1.68809019]
[1729455279966,1.94131174,2704.6,2704.5,2.65324768]
[1729455280164,2.42656689,2704.8,2704.6,0.36979]
[1729455280165,1.94131174,2704.7,2704.6,0.36979]
[1729455280365,1.94131174,2704.7,2704.6,1.33493943]
[1729455280664,1.94131174,2704.7,2704.6,1.56620385]
[1729455280869,1.94131174,2704.7,2704.6,2.30625002]
[1729455281171,1.94131174,2704.7,2704.6,2.76877888]
[1729455281560,1.94131174,2704.8,2704.6,1.43383945]
[1729455281764,2.82546689,2704.9,2704.7,1.43383945]
[1729455282067,2.82546689,2704.9,2704.5,2.28343962]
[1729455282068,2.82546689,2704.9,2704.8,1.57228649]
[1729455282268,2.82546689,2704.9,2704.8,1.68791403]
[1729455282968,4.42770051,2704.9,2704.8,1.68791403]
[1729455283170,4.42756143,2704.9,2704.8,0.94789773]
[1729455283675,0.3989,2704.9,2704.8,0.94789773]
[1729455283863,0.3989,2704.9,2704.8,0.57813773]
[1729455284975,0.3989,2704.9,2704.8,0.94789773]
[1729455285369,0.3989,2704.9,2704.8,0.36976]
[1729455287676,1.85359207,2704.9,2704.8,0.36976]
[1729455287975,1.85359259,2704.9,2704.8,0.36976]
[1729455289774,1.45469259,2704.9,2704.8,0.36976]
[1729455290376,1.45469259,2704.9,2704.8,0.78256]
[1729455290566,1.94048576,2704.9,2704.8,0.78256]
[1729455291471,1.9393056,2704.9,2704.8,0.4128]
[1729455291868,2.3090556,2704.9,2704.8,0.4128]
[1729455292462,2.3090556,2704.9,2704.8,0.99094847]
[1729455292874,0.36975,2704.9,2704.8,0.87531904]
[1729455293472,2.30886151,2704.9,2704.8,0.46251904]
[1729455294473,2.30878987,2704.9,2704.8,0.46251904]
[1729455295277,0.36975,2704.9,2704.8,0.46251904]
[1729455295776,0.36976,2704.8,2704.6,0.36978]
[1729455296072,0.36976,2704.8,2704.5,0.4]
[1729455296073,2.30879221,2704.8,2704.7,0.57816688]
[1729455296266,2.30879221,2704.8,2704.5,0.752]
[1729455296267,0.36979,2704.6,2704.5,0.752]
[1729455296474,2.30899495,2704.6,2704.5,1.33022068]
[1729455296779,2.30899495,2704.6,2704.5,1.21457655]
[1729455296979,2.69489495,2704.6,2704.5,1.21457655]
[1729455297177,2.69489495,2704.6,2704.5,1.21457155]
[1729455297975,2.69491484,2704.6,2704.5,1.21457155]
[1729455298172,0.75569,2704.6,2704.5,1.21457155]
[1729455298677,2.21011685,2704.6,2704.5,0.46257155]
[1729455298873,0.75569,2704.6,2704.5,0.46257155]
[1729455299179,0.75569,2704.6,2704.3,1.71714943]
[1729455299180,0.36982,2704.4,2704.3,0.752]
[1729455299369,1.3394675,2704.4,2704.3,1.33023848]
[1729455299776,1.3394675,2704.4,2704.3,0.57823848]
[1729455299979,1.82429126,2704.4,2704.3,0.57823848]
[1729455300179,1.82429126,2704.4,2704.3,0.46259079]
[1729455300479,0.36985,2704.2,2704.1,2.12374943]
[1729455300676,1.33950279,2704.2,2704.1,2.17975598]
[1729455300875,1.33950279,2704.2,2704.1,0.46260655]
[1729455301085,0.36986,2704.1,2704.0,4.17294943]
[1729455301272,4.66227126,2704.1,2703.8,0.96514943]
[1729455301580,0.9697848,2704.0,2703.7,1.36294943]
[1729455301778,0.9697848,2704.0,2703.8,1.42781648]
[1729455301973,0.9697848,2704.1,2703.9,1.22105705]
[1729455302275,0.9697848,2704.1,2704.0,0.3978]
[1729455302478,1.3396448,2704.1,2704.0,0.3978]
[1729455302685,0.9697848,2704.1,2704.0,0.3978]
[1729455303074,1.3396448,2704.1,2704.0,0.3978]
[1729455305174,0.36988,2704.0,2703.8,0.96514943]
[1729455305376,0.36988,2704.0,2703.7,2.08705943]
[1729455305377,0.4001,2703.9,2703.7,2.08705943]
[1729455305575,0.3972,2703.8,2703.7,2.08705943]
[1729455305784,0.3972,2703.8,2703.7,1.58458629]
[1729455306280,0.3972,2703.8,2703.7,0.36991]
[1729455307482,0.3972,2703.8,2703.7,0.94824395]
[1729455307683,0.3972,2703.8,2703.7,1.91339338]
[1729455307878,0.3972,2703.8,2703.7,0.94824395]
[1729455308279,0.3972,2703.8,2703.7,1.91339338]
[1729455308489,0.3972,2703.8,2703.7,0.94824395]
[1729455309287,0.8172,2703.8,2703.7,0.94824395]
[1729455310591,0.8172,2703.8,2703.7,0.36991]
[1729455310785,0.8172,2703.8,2703.7,0.9482377]
[1729455311587,0.8172,2703.8,2703.7,0.9482356]
[1729455311788,0.4001,2703.9,2703.7,0.5783256]
[1729455311989,0.3899,2704.0,2703.9,0.36989]
[1729455312491,0.3899,2704.0,2703.6,1.36804943]
[1729455312682,0.75978,2704.0,2703.8,0.3699]
[1729455312987,0.75978,2704.0,2703.6,2.12004943]
[1729455312988,0.36991,2703.8,2703.6,0.752]
[1729455313194,1.3596848,2704.0,2703.5,3.96754]
[1729455313195,1.1816,2703.7,2703.5,3.96754]
[1729455313379,1.1816,2703.7,2703.6,0.752]
[1729455313983,1.1816,2703.7,2703.6,1.12193]
[1729455314482,1.1816,2703.7,2703.6,0.36993]
[1729455315986,1.1816,2703.7,2703.5,3.5976]
[1729455316195,1.1816,2703.7,2703.5,3.96753]
[1729455317690,1.1816,2703.7,2703.5,0.75973]
[1729455321784,1.55152,2703.7,2703.5,0.75973]
[1729455322090,1.1816,2703.7,2703.5,0.75973]
[1729455322683,1.1816,2703.7,2703.6,0.36993]
[1729455323082,1.1816,2703.7,2703.5,0.3898]
[1729455323286,1.1816,2703.7,2703.5,0.75973]
[1729455323981,0.7917,2703.7,2703.6,3.6984]
[1729455324298,3.57767,2704.1,2703.6,3.6984]
[1729455324589,3.57767,2704.1,2703.9,0.36989]
[1729455324787,3.57767,2704.1,2703.3,0.96514943]
[1729455324788,3.2078,2704.1,2703.3,0.96514943]
[1729455324986,0.3871,2704.0,2703.3,0.3938]
[1729455325288,0.36993,2703.6,2703.4,0.36995]
[1729455325593,1.2174,2703.5,2703.4,0.36995]
[1729455330797,1.2174,2703.5,2703.4,0.77735]
[1729455331191,0.8034,2703.5,2703.4,0.77735]
[1729455340306,0.8034,2703.5,2703.4,1.24006746]
[1729455341105,0.8034,2703.5,2703.4,1.3557461]
[1729455342612,0.8034,2703.5,2703.4,2.32089553]
[1729455343110,0.8034,2703.5,2703.4,3.06124721]
[1729455343811,0.8034,2703.5,2703.4,1.85818006]
[1729455344005,0.8034,2703.5,2703.4,2.3209026]
[1729455344203,0.8034,2703.5,2703.4,2.28390867]
[1729455344403,1.1919,2703.5,2703.4,0.57840317]
[1729455344602,2.1616848,2703.5,2703.4,0.57840317]
[1729455344810,2.1616848,2703.5,2703.4,0.94836317]
[1729455345204,2.1616848,2703.5,2703.4,1.68873545]
[1729455345404,2.1616848,2703.5,2703.4,1.20309482]
[1729455345709,2.5316248,2703.5,2703.4,0.57840683]
[1729455346011,2.5316248,2703.5,2703.4,1.31879946]
[1729455346210,2.5316248,2703.5,2703.4,0.57840683]
[1729455347405,2.1616848,2703.5,2703.4,1.31879909]
[1729455347612,2.1616848,2703.5,2703.4,2.28394852]
[1729455347912,2.1616848,2703.5,2703.4,2.28395003]
[1729455348101,2.5316248,2703.5,2703.4,2.28395003]
[1729455349315,2.1616848,2703.5,2703.4,2.65391003]
[1729455349809,2.1616848,2703.5,2703.4,2.28395003]
[1729455350019,2.5316248,2703.5,2703.4,2.28395003]
[1729455351015,2.5316248,2703.5,2703.4,2.28393872]
[1729455351209,2.5316248,2703.5,2703.4,2.39962282]
[1729455351415,2.5316248,2703.5,2703.4,2.28393872]
[1729455352115,2.5316248,2703.5,2703.4,2.39962318]
[1729455352712,2.5316248,2703.5,2703.4,2.39962414]
[1729455352910,2.1616848,2703.5,2703.4,2.28393872]
[1729455354011,2.5316248,2703.5,2703.4,2.28393872]
[1729455354311,2.1616848,2703.5,2703.4,2.65389872]
[1729455354612,2.5316248,2703.5,2703.4,1.08083153]
[1729455354806,2.5316248,2703.5,2703.4,2.28392537]
[1729455355012,2.1616848,2703.5,2703.4,2.28392537]
[1729455355515,2.5316248,2703.5,2703.4,2.28392537]
[1729455355922,1.56184,2703.5,2703.4,2.28392537]
[1729455356419,2.53225527,2703.5,2703.4,2.39961013]
[1729455356719,2.53233348,2703.5,2703.4,3.43974586]
[1729455357117,2.16239348,2703.5,2703.4,2.84455643]
[1729455357316,1.77389348,2703.5,2703.4,4.68918759]
[1729455358121,0.97049348,2703.5,2703.4,3.67117021]
[1729455358416,0.97049348,2703.5,2703.4,4.87435759]
[1729455358621,0.97049348,2703.5,2703.4,3.6036098]
[1729455359114,0.97049348,2703.6,2703.5,0.36994]
[1729455359315,0.97049348,2703.6,2703.5,4.10844481]
[1729455360924,1.45447126,2703.6,2703.5,4.10844481]
[1729455361218,1.45447126,2703.6,2703.5,4.10844727]
[1729455361419,2.24267126,2703.7,2703.5,4.47838727]
[1729455361723,2.24267126,2703.7,2703.6,2.65976889]
[1729455361922,2.61258126,2703.7,2703.6,3.62553173]
[1729455363124,2.61258126,2703.7,2703.6,3.62552745]
[1729455363423,2.61258126,2703.7,2703.6,3.62558667]
[1729455363818,2.61258126,2703.7,2703.6,2.58531629]
[1729455363819,1.15811,2703.7,2703.6,2.58531629]
[1729455364121,1.15811,2703.7,2703.6,1.38226208]
[1729455364418,1.15811,2703.7,2703.6,3.62576725]
[1729455364419,2.61433838,2703.7,2703.6,3.62576725]
[1729455364722,2.61435275,2703.7,2703.6,3.62578672]
[1729455364923,1.15811,2703.7,2703.6,2.58531016]
[1729455366221,3.09734581,2703.7,2703.6,1.6194881]
[1729455367424,3.09734581,2703.7,2703.6,1.50380981]
[1729455367822,1.15811,2703.7,2703.6,1.50380981]
[1729455368123,6.46350422,2703.7,2703.6,0.4627108]